[Event "Titled Tuesday Blitz August 1 Early 2023"]
[White "MFatigue"]
[Black "Papasimakopoulos, Alexandros"]
[BlackFideId "4244125"]
[WhiteElo "2473"]
[BlackElo "2713"]
[Result "0-1"]
[Round "3"]
[TimeControl "180+1"]
[Date "2023.08.01"]
[WhiteClock "0:00:09"]
[BlackClock "0:01:28"]
[Board "101"]

1. e4 {[%clk 0:03:00]}  e6 {[%clk 0:02:57]} 2. d4 {[%clk 0:02:59]}  d5 {[%clk 0:02:58]} 3. Nc3 {[%clk 0:02:59]}  Bb4 {[%clk 0:02:57]} 4. e5 {[%clk 0:03:00]}  c5 {[%clk 0:02:58]} 5. a3 {[%clk 0:03:00]}  Bxc3+ {[%clk 0:02:58]} 6. bxc3 {[%clk 0:03:01]}  Nc6 {[%clk 0:02:59]} 7. Qg4 {[%clk 0:02:56]}  g6 {[%clk 0:02:58]} 8. Nf3 {[%clk 0:02:54]}  Bd7 {[%clk 0:02:58]} 9. h4 {[%clk 0:02:50]}  h6 {[%clk 0:02:58]} 10. Qf4 {[%clk 0:02:51]}  Qa5 {[%clk 0:02:57]} 11. Bd2 {[%clk 0:02:50]}  Rh7 {[%clk 0:02:57]} 12. Bd3 {[%clk 0:02:46]}  c4 {[%clk 0:02:56]} 13. Be2 {[%clk 0:02:46]}  Qa4 {[%clk 0:02:56]} 14. Bd1 {[%clk 0:02:46]}  O-O-O {[%clk 0:02:56]} 15. O-O {[%clk 0:02:38]}  Rf8 {[%clk 0:02:56]} 16. Qg3 {[%clk 0:02:37]}  Nce7 {[%clk 0:02:52]} 17. Qh3 {[%clk 0:02:32]}  f5 {[%clk 0:02:50]} 18. exf6 {[%clk 0:02:31]}  Nxf6 {[%clk 0:02:50]} 19. Ne5 {[%clk 0:02:32]}  Ne4 {[%clk 0:02:49]} 20. Be1 {[%clk 0:02:27]}  Nc6 {[%clk 0:02:48]} 21. Nxg6 {[%clk 0:02:14]}  Rg8 {[%clk 0:02:48]} 22. Ne5 {[%clk 0:02:15]}  Nxe5 {[%clk 0:02:47]} 23. dxe5 {[%clk 0:02:15]}  Rhg7 {[%clk 0:02:44]} 24. g4 {[%clk 0:02:07]}  Qa5 {[%clk 0:02:32]} 25. f3 {[%clk 0:01:56]}  Nxc3 {[%clk 0:02:32]} 26. Kh2 {[%clk 0:01:40]}  d4 {[%clk 0:02:32]} 27. f4 {[%clk 0:01:40]}  Rf8 {[%clk 0:02:21]} 28. Be2 {[%clk 0:01:23]}  Rgf7 {[%clk 0:02:14]} 29. Bd2 {[%clk 0:00:59]}  Qd5 {[%clk 0:01:56]} 30. Bxc3 {[%clk 0:00:57]}  dxc3 {[%clk 0:01:57]} 31. Qxc3 {[%clk 0:00:57]}  Rxf4 {[%clk 0:01:58]} 32. Rxf4 {[%clk 0:00:40]}  Rxf4 {[%clk 0:01:59]} 33. Rf1 {[%clk 0:00:40]}  Bc6 {[%clk 0:01:49]} 34. Kg3 {[%clk 0:00:20]}  Rd4 {[%clk 0:01:41]} 35. Bf3 {[%clk 0:00:18]}  Qxe5+ {[%clk 0:01:40]} 36. Kh3 {[%clk 0:00:15]}  h5 {[%clk 0:01:28]} 37. gxh5 {[%clk 0:00:09]}  Rxh4+ {[%clk 0:01:28]} 0-1


[Site "https://www.chess.com"]

[Event "Titled Tuesday Blitz August 1 Early 2023"]
[White "Panesar Vedant"]
[Black "D`Arruda, Ricardo D."]
[WhiteFideId "35033018"]
[BlackFideId "100692"]
[WhiteElo "2710"]
[BlackElo "2472"]
[Result "1-0"]
[Round "3"]
[TimeControl "180+1"]
[Date "2023.08.01"]
[WhiteClock "0:00:53"]
[BlackClock "0:00:37"]
[Board "102"]

1. d4 {[%clk 0:03:00]}  Nf6 {[%clk 0:02:59]} 2. c4 {[%clk 0:03:00]}  e5 {[%clk 0:02:56]} 3. dxe5 {[%clk 0:03:00]}  Ne4 {[%clk 0:02:54]} 4. Nd2 {[%clk 0:02:55]}  Nc5 {[%clk 0:02:53]} 5. Ngf3 {[%clk 0:02:54]}  Nc6 {[%clk 0:02:52]} 6. e3 {[%clk 0:02:53]}  d6 {[%clk 0:02:52]} 7. exd6 {[%clk 0:02:44]}  Bxd6 {[%clk 0:02:53]} 8. Be2 {[%clk 0:02:40]}  Qf6 {[%clk 0:02:52]} 9. O-O {[%clk 0:02:35]}  Bf5 {[%clk 0:02:51]} 10. Nb3 {[%clk 0:02:33]}  O-O-O {[%clk 0:02:48]} 11. Nbd4 {[%clk 0:02:34]}  Be4 {[%clk 0:02:47]} 12. Bd2 {[%clk 0:02:29]}  Qh6 {[%clk 0:02:37]} 13. g3 {[%clk 0:02:20]}  Rhe8 {[%clk 0:02:19]} 14. b4 {[%clk 0:02:12]}  Ne6 {[%clk 0:02:06]} 15. b5 {[%clk 0:02:09]}  Ncxd4 {[%clk 0:01:57]} 16. exd4 {[%clk 0:02:07]}  Qh3 {[%clk 0:01:56]} 17. Be3 {[%clk 0:01:13]}  Be5 {[%clk 0:01:45]} 18. Bd3 {[%clk 0:00:54]}  Bxf3 {[%clk 0:01:02]} 19. Qxf3 {[%clk 0:00:53]}  Bxd4 {[%clk 0:00:37]} 20. Bf5 {[%clk 0:00:53]} 1-0


[Site "https://www.chess.com"]

[Event "Titled Tuesday Blitz August 1 Early 2023"]
[White "Rama, Tejas"]
[Black "nickVet"]
[WhiteFideId "30907381"]
[WhiteElo "2471"]
[BlackElo "2708"]
[Result "1-0"]
[Round "3"]
[TimeControl "180+1"]
[Date "2023.08.01"]
[WhiteClock "0:00:19"]
[BlackClock "0:00:52"]
[Board "103"]

1. d4 {[%clk 0:03:00]}  d5 {[%clk 0:02:59]} 2. c4 {[%clk 0:03:00]}  c6 {[%clk 0:02:59]} 3. Nc3 {[%clk 0:02:59]}  Nf6 {[%clk 0:02:59]} 4. e3 {[%clk 0:02:59]}  e6 {[%clk 0:02:59]} 5. Nf3 {[%clk 0:02:59]}  Nbd7 {[%clk 0:02:59]} 6. Be2 {[%clk 0:02:59]}  Bd6 {[%clk 0:02:58]} 7. O-O {[%clk 0:02:59]}  O-O {[%clk 0:02:59]} 8. b3 {[%clk 0:02:59]}  b6 {[%clk 0:02:59]} 9. Bb2 {[%clk 0:02:59]}  Bb7 {[%clk 0:02:59]} 10. Bd3 {[%clk 0:03:00]}  c5 {[%clk 0:02:53]} 11. cxd5 {[%clk 0:02:59]}  exd5 {[%clk 0:02:53]} 12. Rc1 {[%clk 0:02:52]}  Ne4 {[%clk 0:02:51]} 13. dxc5 {[%clk 0:02:16]}  Ndxc5 {[%clk 0:02:49]} 14. Bb1 {[%clk 0:02:10]}  Nxc3 {[%clk 0:02:17]} 15. Bxc3 {[%clk 0:02:01]}  Ne4 {[%clk 0:02:17]} 16. Bb2 {[%clk 0:01:54]}  Ba6 {[%clk 0:02:17]} 17. Qd4 {[%clk 0:01:49]}  Nf6 {[%clk 0:02:12]} 18. Rfe1 {[%clk 0:01:41]}  Qe7 {[%clk 0:02:11]} 19. Qh4 {[%clk 0:01:37]}  Ne4 {[%clk 0:02:09]} 20. Qxe7 {[%clk 0:01:32]}  Bxe7 {[%clk 0:02:10]} 21. Rc7 {[%clk 0:01:28]}  Bb4 {[%clk 0:02:09]} 22. Rd1 {[%clk 0:01:28]}  Rfc8 {[%clk 0:01:54]} 23. Rxc8+ {[%clk 0:00:55]}  Rxc8 {[%clk 0:01:55]} 24. Rxd5 {[%clk 0:00:54]}  Nc3 {[%clk 0:01:56]} 25. Bxc3 {[%clk 0:00:47]}  Rxc3 {[%clk 0:01:57]} 26. Rd8+ {[%clk 0:00:42]}  Bf8 {[%clk 0:01:57]} 27. Rd1 {[%clk 0:00:38]}  g6 {[%clk 0:01:45]} 28. Nd4 {[%clk 0:00:37]}  Bb7 {[%clk 0:01:42]} 29. h4 {[%clk 0:00:36]}  a6 {[%clk 0:01:40]} 30. h5 {[%clk 0:00:35]}  gxh5 {[%clk 0:01:40]} 31. Nf5 {[%clk 0:00:32]}  f6 {[%clk 0:01:27]} 32. Kh2 {[%clk 0:00:30]}  Bc6 {[%clk 0:01:23]} 33. Rd8 {[%clk 0:00:27]}  Kf7 {[%clk 0:01:23]} 34. Nd4 {[%clk 0:00:26]}  Be8 {[%clk 0:01:20]} 35. Bxh7 {[%clk 0:00:26]}  Be7 {[%clk 0:01:15]} 36. Bg6+ {[%clk 0:00:26]}  Kxg6 {[%clk 0:01:15]} 37. Rxe8 {[%clk 0:00:26]}  Bd6+ {[%clk 0:01:16]} 38. Kh3 {[%clk 0:00:26]}  Rd3 {[%clk 0:01:14]} 39. Re6 {[%clk 0:00:24]}  Be5 {[%clk 0:01:12]} 40. Nf3 {[%clk 0:00:23]}  Bc7 {[%clk 0:01:10]} 41. Rc6 {[%clk 0:00:22]}  Rd7 {[%clk 0:01:05]} 42. Nd4 {[%clk 0:00:20]}  Bd8 {[%clk 0:00:59]} 43. g3 {[%clk 0:00:19]}  Rd5 {[%clk 0:00:59]} 44. Kg2 {[%clk 0:00:20]}  Ra5 {[%clk 0:00:59]} 45. a4 {[%clk 0:00:19]}  Rd5 {[%clk 0:00:59]} 46. Ne6 {[%clk 0:00:19]}  Be7 {[%clk 0:00:52]} 47. Nf4+ {[%clk 0:00:19]} 1-0


[Site "https://www.chess.com"]

[Event "Titled Tuesday Blitz August 1 Early 2023"]
[White "Itgelt, Khuyagtsogt"]
[Black "Willy, Stephen"]
[WhiteFideId "4902912"]
[BlackFideId "30981468"]
[WhiteElo "2659"]
[BlackElo "2456"]
[Result "1-0"]
[Round "3"]
[TimeControl "180+1"]
[Date "2023.08.01"]
[WhiteClock "0:00:08"]
[BlackClock "0:00:03"]
[Board "112"]

1. d4 {[%clk 0:02:46]}  d5 {[%clk 0:02:53]} 2. Nf3 {[%clk 0:02:47]}  Nf6 {[%clk 0:02:53]} 3. c4 {[%clk 0:02:47]}  e6 {[%clk 0:02:51]} 4. g3 {[%clk 0:02:48]}  Bb4+ {[%clk 0:02:49]} 5. Bd2 {[%clk 0:02:47]}  Be7 {[%clk 0:02:49]} 6. Bg2 {[%clk 0:02:47]}  O-O {[%clk 0:02:48]} 7. O-O {[%clk 0:02:47]}  c6 {[%clk 0:02:48]} 8. Qc2 {[%clk 0:02:47]}  Nbd7 {[%clk 0:02:45]} 9. Bg5 {[%clk 0:02:45]}  h6 {[%clk 0:02:40]} 10. Bxf6 {[%clk 0:02:44]}  Nxf6 {[%clk 0:02:36]} 11. Nbd2 {[%clk 0:02:44]}  b6 {[%clk 0:02:35]} 12. e4 {[%clk 0:02:43]}  Bb7 {[%clk 0:02:24]} 13. Rfd1 {[%clk 0:02:22]}  Qc8 {[%clk 0:02:11]} 14. Rac1 {[%clk 0:02:14]}  c5 {[%clk 0:02:08]} 15. cxd5 {[%clk 0:02:05]}  exd5 {[%clk 0:02:07]} 16. e5 {[%clk 0:02:02]}  Ne4 {[%clk 0:01:53]} 17. Nxe4 {[%clk 0:01:55]}  dxe4 {[%clk 0:01:54]} 18. Nd2 {[%clk 0:01:55]}  cxd4 {[%clk 0:01:41]} 19. Nxe4 {[%clk 0:01:33]}  Qxc2 {[%clk 0:01:36]} 20. Rxc2 {[%clk 0:01:34]}  Rac8 {[%clk 0:01:24]} 21. Rxc8 {[%clk 0:01:28]}  Bxc8 {[%clk 0:01:00]} 22. Rxd4 {[%clk 0:01:26]}  Be6 {[%clk 0:00:58]} 23. Nd6 {[%clk 0:01:07]}  Rd8 {[%clk 0:00:56]} 24. a3 {[%clk 0:01:00]}  f6 {[%clk 0:00:50]} 25. f4 {[%clk 0:00:55]}  fxe5 {[%clk 0:00:49]} 26. fxe5 {[%clk 0:00:56]}  Bg5 {[%clk 0:00:45]} 27. Kf2 {[%clk 0:00:52]}  Bc1 {[%clk 0:00:27]} 28. Bd5 {[%clk 0:00:18]}  Bxd5 {[%clk 0:00:21]} 29. Rxd5 {[%clk 0:00:19]}  Bxb2 {[%clk 0:00:21]} 30. e6 {[%clk 0:00:19]}  Bf6 {[%clk 0:00:18]} 31. Kf3 {[%clk 0:00:19]}  Be7 {[%clk 0:00:17]} 32. Nf5 {[%clk 0:00:19]}  Kf8 {[%clk 0:00:11]} 33. Rd7 {[%clk 0:00:05]}  Rxd7 {[%clk 0:00:09]} 34. exd7 {[%clk 0:00:06]}  Bd8 {[%clk 0:00:09]} 35. Ke4 {[%clk 0:00:04]}  Kf7 {[%clk 0:00:08]} 36. Kd5 {[%clk 0:00:04]}  Kf6 {[%clk 0:00:08]} 37. Nd6 {[%clk 0:00:03]}  Ke7 {[%clk 0:00:05]} 38. Kc6 {[%clk 0:00:04]}  Ke6 {[%clk 0:00:03]} 39. Nb7 {[%clk 0:00:02]}  Ke7 {[%clk 0:00:03]} 40. Nd6 {[%clk 0:00:02]}  Ke6 {[%clk 0:00:03]} 41. a4 {[%clk 0:00:02]}  Ke7 {[%clk 0:00:03]} 42. Nc8+ {[%clk 0:00:02]}  Ke6 {[%clk 0:00:04]} 43. Nxa7 {[%clk 0:00:03]}  g5 {[%clk 0:00:03]} 44. g4 {[%clk 0:00:03]}  Ke5 {[%clk 0:00:02]} 45. Kb7 {[%clk 0:00:01]}  Ke6 {[%clk 0:00:03]} 46. Nc6 {[%clk 0:00:02]}  Kxd7 {[%clk 0:00:03]} 47. Nxd8 {[%clk 0:00:03]}  Kxd8 {[%clk 0:00:04]} 48. Kxb6 {[%clk 0:00:03]}  Kd7 {[%clk 0:00:04]} 49. a5 {[%clk 0:00:04]}  Kc8 {[%clk 0:00:04]} 50. a6 {[%clk 0:00:05]}  Kb8 {[%clk 0:00:05]} 51. Kc6 {[%clk 0:00:05]}  Ka7 {[%clk 0:00:06]} 52. h3 {[%clk 0:00:05]}  Kxa6 {[%clk 0:00:07]} 53. Kd6 {[%clk 0:00:06]}  Kb6 {[%clk 0:00:07]} 54. Ke6 {[%clk 0:00:06]}  Kc6 {[%clk 0:00:07]} 55. Kf6 {[%clk 0:00:07]}  Kd5 {[%clk 0:00:07]} 56. Kg6 {[%clk 0:00:07]}  Ke5 {[%clk 0:00:07]} 57. Kxh6 {[%clk 0:00:08]}  Kf4 {[%clk 0:00:05]} 58. Kh5 {[%clk 0:00:07]}  Kg3 {[%clk 0:00:05]} 59. Kxg5 {[%clk 0:00:08]}  Kxh3 {[%clk 0:00:03]} 60. Kh5 {[%clk 0:00:08]} 1-0


[Site "https://www.chess.com"]

[Event "Titled Tuesday Blitz August 1 Early 2023"]
[White "favesaul"]
[Black "caropawn10"]
[WhiteElo "2456"]
[BlackElo "2657"]
[Result "1-0"]
[Round "3"]
[TimeControl "180+1"]
[Date "2023.08.01"]
[WhiteClock "0:00:49"]
[BlackClock "0:00:12"]
[Board "113"]

1. e4 {[%clk 0:03:00]}  c6 {[%clk 0:02:59]} 2. d4 {[%clk 0:03:00]}  d5 {[%clk 0:03:00]} 3. e5 {[%clk 0:03:00]}  Bf5 {[%clk 0:02:58]} 4. h4 {[%clk 0:02:57]}  h5 {[%clk 0:02:58]} 5. Bd3 {[%clk 0:02:58]}  Bxd3 {[%clk 0:02:58]} 6. Qxd3 {[%clk 0:02:59]}  Qa5+ {[%clk 0:02:58]} 7. Nd2 {[%clk 0:02:58]}  e6 {[%clk 0:02:58]} 8. c4 {[%clk 0:02:52]}  Nd7 {[%clk 0:02:51]} 9. Ne2 {[%clk 0:02:49]}  Nh6 {[%clk 0:02:50]} 10. O-O {[%clk 0:02:46]}  Nf5 {[%clk 0:02:48]} 11. Rb1 {[%clk 0:02:30]}  Be7 {[%clk 0:02:42]} 12. a3 {[%clk 0:02:20]}  dxc4 {[%clk 0:02:22]} 13. Nxc4 {[%clk 0:02:18]}  Qd8 {[%clk 0:02:21]} 14. g3 {[%clk 0:02:09]}  O-O {[%clk 0:02:16]} 15. b4 {[%clk 0:01:53]}  g6 {[%clk 0:02:15]} 16. Rd1 {[%clk 0:01:44]}  Nb6 {[%clk 0:02:12]} 17. Nd2 {[%clk 0:01:39]}  Nd5 {[%clk 0:02:09]} 18. Ne4 {[%clk 0:01:39]}  Kg7 {[%clk 0:02:03]} 19. Bg5 {[%clk 0:01:37]}  Bxg5 {[%clk 0:02:01]} 20. hxg5 {[%clk 0:01:38]}  Qb6 {[%clk 0:01:52]} 21. N2c3 {[%clk 0:01:36]}  Nxc3 {[%clk 0:01:48]} 22. Qxc3 {[%clk 0:01:36]}  Rfd8 {[%clk 0:01:48]} 23. Nc5 {[%clk 0:01:30]}  Rd5 {[%clk 0:01:45]} 24. Rd3 {[%clk 0:01:28]}  Rad8 {[%clk 0:01:42]} 25. Rbd1 {[%clk 0:01:28]}  Qc7 {[%clk 0:01:35]} 26. Kg2 {[%clk 0:01:28]}  b6 {[%clk 0:01:34]} 27. Ne4 {[%clk 0:01:21]}  c5 {[%clk 0:00:58]} 28. dxc5 {[%clk 0:01:07]}  Rxd3 {[%clk 0:00:35]} 29. Rxd3 {[%clk 0:01:08]}  Rxd3 {[%clk 0:00:35]} 30. Qxd3 {[%clk 0:01:09]}  bxc5 {[%clk 0:00:35]} 31. bxc5 {[%clk 0:00:55]}  Qxe5 {[%clk 0:00:35]} 32. c6 {[%clk 0:00:52]}  Nd4 {[%clk 0:00:26]} 33. c7 {[%clk 0:00:51]}  Qxc7 {[%clk 0:00:20]} 34. Qxd4+ {[%clk 0:00:51]}  e5 {[%clk 0:00:20]} 35. Qd5 {[%clk 0:00:50]}  h4 {[%clk 0:00:19]} 36. gxh4 {[%clk 0:00:50]}  a5 {[%clk 0:00:20]} 37. Nf6 {[%clk 0:00:49]}  Qe7 {[%clk 0:00:12]} 38. Qa8 {[%clk 0:00:49]} 1-0


[Site "https://www.chess.com"]

[Event "Titled Tuesday Blitz August 1 Early 2023"]
[White "Kwon, Sehyun"]
[Black "TomLiu777"]
[WhiteFideId "13203088"]
[WhiteElo "2648"]
[BlackElo "2455"]
[Result "1-0"]
[Round "3"]
[TimeControl "180+1"]
[Date "2023.08.01"]
[WhiteClock "0:00:23"]
[BlackClock "0:00:00"]
[Board "114"]

1. Nf3 {[%clk 0:03:00]}  Nf6 {[%clk 0:02:58]} 2. b3 {[%clk 0:03:00]}  g6 {[%clk 0:02:58]} 3. Bb2 {[%clk 0:03:01]}  Bg7 {[%clk 0:02:58]} 4. e3 {[%clk 0:02:59]}  Kf8 {[%clk 0:02:59]} 5. d4 {[%clk 0:02:59]}  d5 {[%clk 0:02:57]} 6. Nbd2 {[%clk 0:02:59]}  Bg4 {[%clk 0:02:52]} 7. Be2 {[%clk 0:02:59]}  Nbd7 {[%clk 0:02:47]} 8. O-O {[%clk 0:02:58]}  h5 {[%clk 0:02:45]} 9. c4 {[%clk 0:02:52]}  c6 {[%clk 0:02:44]} 10. h3 {[%clk 0:02:51]}  Bf5 {[%clk 0:02:41]} 11. Ne5 {[%clk 0:02:49]}  Kg8 {[%clk 0:02:28]} 12. Ndf3 {[%clk 0:02:48]}  h4 {[%clk 0:02:21]} 13. Rc1 {[%clk 0:02:43]}  Rh5 {[%clk 0:02:15]} 14. cxd5 {[%clk 0:02:02]}  cxd5 {[%clk 0:02:11]} 15. Nxd7 {[%clk 0:02:00]}  Bxd7 {[%clk 0:02:10]} 16. Ne5 {[%clk 0:01:59]}  Rg5 {[%clk 0:02:00]} 17. Kh2 {[%clk 0:01:49]}  Bf5 {[%clk 0:00:43]} 18. Nf3 {[%clk 0:01:08]}  Qd6+ {[%clk 0:00:40]} 19. Kh1 {[%clk 0:01:07]}  Rh5 {[%clk 0:00:30]} 20. Bc3 {[%clk 0:00:34]}  Be4 {[%clk 0:00:28]} 21. Be1 {[%clk 0:00:33]}  Rf8 {[%clk 0:00:18]} 22. Ne5 {[%clk 0:00:32]}  Rxe5 {[%clk 0:00:12]} 23. dxe5 {[%clk 0:00:31]}  Qxe5 {[%clk 0:00:13]} 24. Bf3 {[%clk 0:00:29]}  e6 {[%clk 0:00:11]} 25. Bc3 {[%clk 0:00:29]}  Qf5 {[%clk 0:00:10]} 26. Bxf6 {[%clk 0:00:26]}  Bxf6 {[%clk 0:00:09]} 27. Bxe4 {[%clk 0:00:25]}  dxe4 {[%clk 0:00:07]} 28. Qg4 {[%clk 0:00:25]}  Qe5 {[%clk 0:00:06]} 29. Rc4 {[%clk 0:00:25]}  Be7 {[%clk 0:00:04]} 30. Qxe4 {[%clk 0:00:24]}  Qg5 {[%clk 0:00:02]} 31. Qxb7 {[%clk 0:00:23]}  Bd6 {[%clk 0:00:02]} 32. Qf3 {[%clk 0:00:22]}  Qe5 {[%clk 0:00:00]} 33. Qf4 {[%clk 0:00:23]} 1-0


[Site "https://www.chess.com"]

[Event "Titled Tuesday Blitz August 1 Early 2023"]
[White "Iskusnyh, Sergei"]
[Black "chessmateto"]
[WhiteFideId "4120027"]
[WhiteElo "2632"]
[BlackElo "2454"]
[Result "0-1"]
[Round "3"]
[TimeControl "180+1"]
[Date "2023.08.01"]
[WhiteClock "0:01:11"]
[BlackClock "0:01:14"]
[Board "115"]

1. d4 {[%clk 0:03:00]}  d5 {[%clk 0:02:59]} 2. c4 {[%clk 0:03:00]}  c6 {[%clk 0:02:59]} 3. Nf3 {[%clk 0:03:00]}  Nf6 {[%clk 0:02:58]} 4. e3 {[%clk 0:02:57]}  Bf5 {[%clk 0:02:58]} 5. Nc3 {[%clk 0:02:55]}  e6 {[%clk 0:02:58]} 6. Nh4 {[%clk 0:02:55]}  Be4 {[%clk 0:02:58]} 7. f3 {[%clk 0:02:54]}  Bg6 {[%clk 0:02:58]} 8. Nxg6 {[%clk 0:02:53]}  hxg6 {[%clk 0:02:58]} 9. Bd2 {[%clk 0:02:54]}  Be7 {[%clk 0:02:58]} 10. Qc2 {[%clk 0:02:49]}  Qc7 {[%clk 0:02:58]} 11. O-O-O {[%clk 0:02:37]}  dxc4 {[%clk 0:02:52]} 12. Bxc4 {[%clk 0:02:35]}  b5 {[%clk 0:02:52]} 13. Nxb5 {[%clk 0:02:25]}  cxb5 {[%clk 0:02:40]} 14. Bxb5+ {[%clk 0:02:24]}  Kd8 {[%clk 0:02:41]} 15. Bc3 {[%clk 0:02:24]}  Nd5 {[%clk 0:02:31]} 16. Rhe1 {[%clk 0:02:09]}  Nd7 {[%clk 0:02:10]} 17. Rd3 {[%clk 0:01:56]}  Rb8 {[%clk 0:01:59]} 18. Ba4 {[%clk 0:01:51]}  N7b6 {[%clk 0:01:52]} 19. Bb3 {[%clk 0:01:50]}  Nb4 {[%clk 0:01:48]} 20. Bxb4 {[%clk 0:01:50]}  Qxc2+ {[%clk 0:01:48]} 21. Kxc2 {[%clk 0:01:45]}  Bxb4 {[%clk 0:01:49]} 22. Red1 {[%clk 0:01:41]}  Rxh2 {[%clk 0:01:47]} 23. d5 {[%clk 0:01:41]}  Rxg2+ {[%clk 0:01:47]} 24. Kb1 {[%clk 0:01:40]}  exd5 {[%clk 0:01:40]} 25. Bxd5 {[%clk 0:01:40]}  Nxd5 {[%clk 0:01:35]} 26. Rxd5+ {[%clk 0:01:41]}  Ke7 {[%clk 0:01:36]} 27. Rd7+ {[%clk 0:01:40]}  Kf8 {[%clk 0:01:36]} 28. Rxa7 {[%clk 0:01:37]}  Bc3 {[%clk 0:01:31]} 29. Rdd7 {[%clk 0:01:30]}  Rbxb2+ {[%clk 0:01:25]} 30. Kc1 {[%clk 0:01:29]}  Rg1+ {[%clk 0:01:15]} 31. Rd1 {[%clk 0:01:28]}  Rxd1+ {[%clk 0:01:13]} 32. Kxd1 {[%clk 0:01:28]}  Rd2+ {[%clk 0:01:13]} 33. Kc1 {[%clk 0:01:28]}  Rf2 {[%clk 0:01:12]} 34. f4 {[%clk 0:01:17]}  Bd2+ {[%clk 0:01:12]} 35. Kc2 {[%clk 0:01:17]}  Bxe3+ {[%clk 0:01:13]} 36. Kd3 {[%clk 0:01:11]}  Bxa7 {[%clk 0:01:14]} 0-1


[Site "https://www.chess.com"]

[Event "Titled Tuesday Blitz August 1 Early 2023"]
[White "Rodriguez, Santiago"]
[Black "Przybylski, Wojciech"]
[WhiteFideId "3000591"]
[BlackFideId "1117599"]
[WhiteElo "2450"]
[BlackElo "2627"]
[Result "0-1"]
[Round "3"]
[TimeControl "180+1"]
[Date "2023.08.01"]
[WhiteClock "0:01:33"]
[BlackClock "0:01:07"]
[Board "117"]

1. d4 {[%clk 0:03:00]}  d5 {[%clk 0:02:57]} 2. Nc3 {[%clk 0:03:00]}  Bf5 {[%clk 0:02:55]} 3. f3 {[%clk 0:02:58]}  e5 {[%clk 0:02:50]} 4. e4 {[%clk 0:02:56]}  dxe4 {[%clk 0:02:49]} 5. fxe4 {[%clk 0:02:54]}  Bg6 {[%clk 0:02:44]} 6. d5 {[%clk 0:02:47]}  Bb4 {[%clk 0:02:43]} 7. Bd3 {[%clk 0:02:35]}  Bxc3+ {[%clk 0:02:41]} 8. bxc3 {[%clk 0:02:35]}  Bxe4 {[%clk 0:02:41]} 9. Bxe4 {[%clk 0:02:27]}  Qh4+ {[%clk 0:02:40]} 10. g3 {[%clk 0:02:28]}  Qxe4+ {[%clk 0:02:40]} 11. Qe2 {[%clk 0:02:29]}  Qxh1 {[%clk 0:02:31]} 12. Qxe5+ {[%clk 0:02:28]}  Kd8 {[%clk 0:02:17]} 13. Bg5+ {[%clk 0:02:18]}  f6 {[%clk 0:02:09]} 14. O-O-O {[%clk 0:02:18]}  Nd7 {[%clk 0:01:59]} 15. Qe6 {[%clk 0:02:11]}  fxg5 {[%clk 0:01:53]} 16. d6 {[%clk 0:02:11]}  Qc6 {[%clk 0:01:37]} 17. Re1 {[%clk 0:02:08]}  Ngf6 {[%clk 0:01:32]} 18. Qe7+ {[%clk 0:02:08]}  Kc8 {[%clk 0:01:31]} 19. Qxg7 {[%clk 0:02:07]}  Rd8 {[%clk 0:01:24]} 20. Ne2 {[%clk 0:02:01]}  Qxd6 {[%clk 0:01:19]} 21. Nd4 {[%clk 0:01:59]}  Qf8 {[%clk 0:01:15]} 22. Qxg5 {[%clk 0:01:52]}  Qg8 {[%clk 0:01:14]} 23. Qf5 {[%clk 0:01:49]}  Qd5 {[%clk 0:01:11]} 24. Qh3 {[%clk 0:01:45]}  Qxa2 {[%clk 0:01:10]} 25. Ne6 {[%clk 0:01:39]}  Re8 {[%clk 0:01:09]} 26. Rf1 {[%clk 0:01:33]}  Qxe6 {[%clk 0:01:07]} 0-1


[Site "https://www.chess.com"]

[Event "Titled Tuesday Blitz August 1 Early 2023"]
[White "Vantika Agrawal"]
[Black "Rosh Jain"]
[WhiteFideId "25050389"]
[BlackFideId "25789465"]
[WhiteElo "2625"]
[BlackElo "2449"]
[Result "1-0"]
[Round "3"]
[TimeControl "180+1"]
[Date "2023.08.01"]
[WhiteClock "0:00:07"]
[BlackClock "0:00:05"]
[Board "118"]

1. e4 {[%clk 0:02:59]}  c5 {[%clk 0:02:59]} 2. Nf3 {[%clk 0:02:58]}  d6 {[%clk 0:02:58]} 3. c3 {[%clk 0:02:53]}  Nf6 {[%clk 0:02:58]} 4. Be2 {[%clk 0:02:49]}  Nc6 {[%clk 0:02:57]} 5. d4 {[%clk 0:02:48]}  cxd4 {[%clk 0:02:57]} 6. cxd4 {[%clk 0:02:48]}  e5 {[%clk 0:02:52]} 7. d5 {[%clk 0:02:41]}  Ne7 {[%clk 0:02:49]} 8. Nc3 {[%clk 0:02:39]}  g6 {[%clk 0:02:49]} 9. O-O {[%clk 0:02:29]}  Bg7 {[%clk 0:02:48]} 10. Bb5+ {[%clk 0:02:21]}  Bd7 {[%clk 0:02:48]} 11. a4 {[%clk 0:02:20]}  O-O {[%clk 0:02:47]} 12. Qb3 {[%clk 0:02:13]}  h6 {[%clk 0:02:47]} 13. h3 {[%clk 0:02:02]}  a6 {[%clk 0:02:11]} 14. Bxd7 {[%clk 0:02:01]}  Nxd7 {[%clk 0:02:12]} 15. Qxb7 {[%clk 0:01:22]}  f5 {[%clk 0:02:08]} 16. Qb4 {[%clk 0:01:16]}  Nc5 {[%clk 0:02:04]} 17. Be3 {[%clk 0:01:12]}  Nd3 {[%clk 0:02:04]} 18. Qc4 {[%clk 0:01:06]}  Nxb2 {[%clk 0:02:03]} 19. Qe2 {[%clk 0:01:05]}  Rb8 {[%clk 0:01:48]} 20. Rfb1 {[%clk 0:01:00]}  Qc7 {[%clk 0:01:35]} 21. Rc1 {[%clk 0:00:37]}  Qc4 {[%clk 0:00:36]} 22. a5 {[%clk 0:00:20]}  Qxe2 {[%clk 0:00:21]} 23. Nxe2 {[%clk 0:00:20]}  fxe4 {[%clk 0:00:21]} 24. Nd2 {[%clk 0:00:19]}  Nxd5 {[%clk 0:00:21]} 25. Nxe4 {[%clk 0:00:19]}  Nxe3 {[%clk 0:00:16]} 26. fxe3 {[%clk 0:00:19]}  d5 {[%clk 0:00:17]} 27. Nc5 {[%clk 0:00:17]}  Ra8 {[%clk 0:00:09]} 28. Nc3 {[%clk 0:00:09]}  d4 {[%clk 0:00:08]} 29. exd4 {[%clk 0:00:07]}  exd4 {[%clk 0:00:09]} 30. Nd5 {[%clk 0:00:07]}  d3 {[%clk 0:00:08]} 31. Ne6 {[%clk 0:00:05]}  d2 {[%clk 0:00:06]} 32. Rcb1 {[%clk 0:00:05]}  Rfb8 {[%clk 0:00:02]} 33. Nb6 {[%clk 0:00:03]}  d1=Q+ {[%clk 0:00:02]} 34. Rxd1 {[%clk 0:00:04]}  Nxd1 {[%clk 0:00:03]} 35. Nxg7 {[%clk 0:00:03]}  Kxg7 {[%clk 0:00:02]} 36. Nxa8 {[%clk 0:00:03]}  Rb7 {[%clk 0:00:03]} 37. Rxd1 {[%clk 0:00:03]}  Rb5 {[%clk 0:00:03]} 38. Rd7+ {[%clk 0:00:03]}  Kf6 {[%clk 0:00:03]} 39. Rd6+ {[%clk 0:00:03]}  Kg5 {[%clk 0:00:03]} 40. Rxa6 {[%clk 0:00:03]}  Rb1+ {[%clk 0:00:02]} 41. Kh2 {[%clk 0:00:04]}  Kf4 {[%clk 0:00:03]} 42. Nb6 {[%clk 0:00:04]}  g5 {[%clk 0:00:03]} 43. Ra7 {[%clk 0:00:04]}  g4 {[%clk 0:00:03]} 44. hxg4 {[%clk 0:00:04]}  Kxg4 {[%clk 0:00:03]} 45. Nd5 {[%clk 0:00:04]}  h5 {[%clk 0:00:02]} 46. a6 {[%clk 0:00:04]}  h4 {[%clk 0:00:03]} 47. Rg7+ {[%clk 0:00:04]}  Kf5 {[%clk 0:00:02]} 48. a7 {[%clk 0:00:04]}  Ra1 {[%clk 0:00:03]} 49. Nb6 {[%clk 0:00:04]}  h3 {[%clk 0:00:03]} 50. a8=Q {[%clk 0:00:04]}  Rxa8 {[%clk 0:00:03]} 51. Nxa8 {[%clk 0:00:05]}  hxg2 {[%clk 0:00:04]} 52. Kxg2 {[%clk 0:00:05]}  Kf6 {[%clk 0:00:04]} 53. Rg3 {[%clk 0:00:06]}  Kf7 {[%clk 0:00:04]} 54. Kf3 {[%clk 0:00:06]}  Kf6 {[%clk 0:00:05]} 55. Kf4 {[%clk 0:00:07]}  Kf7 {[%clk 0:00:05]} 56. Kf5 {[%clk 0:00:07]} 1-0


[Site "https://www.chess.com"]